Workbook

Sheet Main Form
D1: به نام یگانه معمار هستی
B2: =F8 -> 0 | C2: نام مالــــــک :
B3: =F9 -> 0 | C3: پلاک ثبتـــــی : | F3: سازمان نظام مهندسی ساختمان
B4: =F10 -> 0 | C4: شماره پرونده : | D4: نسخه: 03-1403 | F4: (شورای مرکزی)
B6: مشخصــات ملک و ساختمــان آتی الاحداث
C8: نوع کاربری ساختمــــــــان : | E8: مساحت کل زیربنا (متر مربع) : | G8: نام مالـــــــــــــــــــــک :
C9: نشانی محل احداث ساختمان : | E9: تعداد طبقـات زیرزمیــــــن : | G9: پلاک ثبتــــــــــــــــــــی :
C10: شماره نقشه مصوب معماری : | E10: تعــداد کــــل طبقــــــــات : | G10: شماره پرونــــــــــــــــده :
G12: سایر توضیحــــــــــــــات :
B14: مشخصــات کلـــی مصالح
B16: ST-37 , Fy = 2400 kg/cm2 | C16: نوع فولاد ورق‌ها و پروفیـــــــــل‌ها : | D16: بتن با پوکه معـدنی و سیمـــــــــان | E16: نوع مصالح کف‌سـازی طبقــــــــات : | F16: فولادی با اتصالات پیچ و مهره | G16: نوع مصالح اسکلـــت ســـازه :
B17: S400 , Fy = 4000 kg/cm2 | C17: نوع فولاد میلگردهای طــــــــــولی : | D17: بتن با پوکه معـدنی و سیمـــــــــان | E17: نوع مصالح شیب‌بندی بـــــــــــــام : | F17: تیرچه بتنی و بلوک پلی‌استایریـن | G17: نوع سیستــــم سقــــــــــف :
B18: S340 , Fy = 3400 kg/cm2 | C18: نوع فولاد میلگردهای عرضــــــــی : | D18: 210 | E18: مقاومت مشخصه بتن فونداسیــــون : | F18: آجر سفــــال و ملات ماسه سیمان | G18: نوع دیوارهای داخلــــــــــی :
B19: S400 , Fy = 4000 kg/cm2 | C19: نوع فولاد میل‌مهارهای کف‌ستون‌ها : | D19: 210 | E19: مقاومت مشخصه بتن ستون و دیوار : | F19: آجر سفــــال و ملات ماسه سیمان | G19: نوع دیوارهای خارجـــــــــی :
B20: سیم : ASTM A421M | C20: مشخصـات فولاد پیش تنیــــــدگی : | D20: 210 | E20: مقاومت مشخصه بتـــن سقـــــــف : | F20: ISO 10.9 | G20: مشخصات پیچ‌ها در اتصالات :
G22: سایر توضیحــــــــــــــــات :
B24: فرضیـــات بارگذاری ثقـــلی
B26: بار مرده و زنده واحد سطح کفها و پلکان بر حسب نوع کاربری آنها (kg/m2)
B27: پلکان | C27: ___ | D27: بام | E27: تجاری | F27: مسکونی | G27: نــــــوع کـاربــــــــــــــــــــری :
G28: بار مـــــــــرده گسترده یکنواخت :
G29: بار زنــــــــــده گسترده یکنواخت :
G30: بار گسترده معادل وزن جداکننده‌ها :
G32: سایر توضیحــــــــــــــات :
B34: بار واحد سطح دیوارهـــــــا بر حسب وضعیت پوشش طرفین آنها (kg/m2)
B35: کاشی (سیمانکاری) / نما | C35: سفیدکاری / نما | D35: کاشی (سیمانکاری) / کاشی (سیمانکاری) | E35: سفیدکاری / کاشی (سیمانکاری) | F35: سفیدکاری / سفیدکاری | G35: ضخامت دیوار (cm)
B36: 275 | C36: 260 | D36: 210 | E36: 195 | F36: 175 | G36: 10
B37: 320 | C37: 300 | D37: 255 | E37: 235 | F37: 220 | G37: 15
B38: 360 | C38: 340 | D38: 300 | E38: 280 | F38: 260 | G38: 20
G40: سایر توضیحــــــــــــــات :
B42: گروه‌بنـــــــدی ساختمـــــان بر حسب نظـــــم کالبــــــدی
B44: وضعیت ســـــــازه به لحاظ خصوصیات کالبدی در پـــــــــــــــــــــــــــــــــــلان
B45: =IF(D45=Options!A72,Options!B72,Options!B73) -> الف- ساختمان نامنظمی هندســـــــــــــــــــــی ندارد. | D45: وجود ندارد یا کمتر از 20 درصد طول پلان در هر دو جهت است. | F45: پس‌رفتگی هم‌زمان در دو جهت حداقل در یکی از گوشه‌هــای ساختمــان :
B46: =IF(D46=Options!A75,Options!B75,IF(D46=Options!A76,Options!B76,IF(D46=Options!A77,Options!B77))) -> ب- ساختمان نامنظمی زیاد یا شدید پیچشـــــــی ندارد. | D46: کمتر از 20 درصد متوسط تغییرمکان نسبی در دو انتهای ساختمان در آن طبقه است. | F46: حداکثر تغییرمکان نسبــــی در یک انتهای ساختمان در هر طبقـــــــــه، با احتســـاب پیچـــــش تصادفـــــــــــــــی و با منظــــــور کردن Aj=1.0 :
B48: =IF(AND(D48=Options!A79,D49=Options!A82),Options!B79,Options!B80) -> پ- ساختمان نامنظمی در دیافراگـــــــــــــــــم ندارد. | D48: به میزان مجموع سطوح بازشوی کمتر از 50 درصد سطح طبقه است. | F48: تغییر ناگهـانی در مساحــــــــت دیافراگـــــــــــــــــــــــــــــــــــــــم :
D49: وجود ندارد یا کمتر از 50 درصد سختی طبقات مجاور است. | F49: تغییر ناگهـانی در سختــــــــــی دیافراگـــــــــــــــــــــــــــــــــــــــم :
B50: =IF(D50=Options!A85,Options!B85,Options!B86) -> ت- ساختمان نامنظمی خارج از صفحـــــــــــــــه ندارد. | D50: در هیچ‌یک از اجزای باربر جانبی وجود ندارد. | F50: انقطاع در مسیر انتقال نیروی جانبی (تغییر صفحه) در سیستم باربر جانبی :
B51: =IF(D51=Options!A88,Options!B88,Options!B89) -> ث- ساختمان نامنظمی سیستم‌های غیرمـــــوازی ندارد. | D51: تماماً به موازات محورهای متعامد اصلی ساختمان می‌باشند. | F51: راستـــــــای اجـــزای قائـم باربــــــــــــــــــر جانبــــــــــــــــــــــــی :
B53: وضعیت ســـــــازه به لحاظ خصوصیات کالبدی در ارتفــــــــــــــــــــــــــــــــاع | D53: وضعیت ســـــــازه به لحاظ خصوصیات کالبدی در پــــــــــــــلان : | F53: وضعیت ســـــــازه به لحاظ خصوصیات کالبدی در پــــــــــــــلان :
A54: پ
B55: =IF(D55=Options!D73,Options!E72,Options!E73) -> الف- ساختمان نامنظمی هندســـــــــــــــــــــــــــــی ندارد. | D55: کمتر از 130 درصد آن در طبقات مجاور می‌باشد. | F55: ابعاد افقــــــــــــــــــــی سیستــم باربر جانبی در هر طبقـــــــــــــــــه :
B56: =IF(D56=Options!D76,Options!E75,Options!E76) -> ب- ساختمان نامنظمی جرمــــــــــــــــــــــــــــــــی ندارد. | D56: کمتر از 50 درصد است. | F56: تفاوت جـــــرم هر طبقـه (بجز بام و خرپشته) با جــرم‌های طبقات مجاور :
B57: =IF(D57=Options!D79,Options!E78,Options!E79) -> پ- ساختمان نامنظمی در قطع سیستم باربر جانبـــــــی ندارد. | D57: وجود ندارد یا آثار ناشی از واژگونی روی اعضا تکیه‌گاهی تغییراتی ایجاد نمی‌کند. | F57: انقطاع (جزئی از) سیستــــــــــــــــم باربر جانبـــــــــــــــی در ارتفــاع :
B58: =IF(D58=Options!D82,Options!E81,IF(D58=Options!D83,Options!E82,Options!E83)) -> ت- ساختمان نامنظمی مقاومت جانبـــــــــــــــــــــــی ندارد. | D58: از 80 درصد مقاومت جانبی طبقه روی خود بیشتر است. | F58: مقاومــــــــــــــــــــــــــــت جانبـــــی هر طبقـــــــــــــــــــــــــــــه :
B59: =IF(AND(D59=Options!D86,D60=Options!D90),Options!E89,IF(OR(D59=Options!D88,D60=Options!D92),Options!E91,Options!E90)) -> ث- ساختمان نامنظمی سختـی جانبـــــــــــــــــــــــی ندارد. | D59: از 70 درصد سختی جانبی طبقه روی خود بیشتر است. | F59: سختــــــــــــــــــــــــــــــی جانبــــــی هر طبقــــــــــــــــــــــــــــه :
D60: از 80 درصد متوسط سختی‌های جانبی سه طبقه روی خود بیشتر است.
B62: =IF(AND(B55=Options!E72,B56=Options!E75,B57=Options!E78,B58=Options!E81,B59=Options!E89),Options!F16,Options!F17) -> « ساختمان به لحاظ خصوصیات کالبدی در ارتفاع منظـــــــــــم است » | E62: =IF(AND(B45=Options!B72,B46=Options!B75,B48=Options!B79,B50=Options!B85,B51=Options!B88),Options!F14,Options!F15) -> « ساختمان به لحاظ خصوصیات کالبدی در پلان منظـــــــــــــم است »
B65: فرضیات بارگذاری لرزه‌ای بر اساس ویرایش چهارم استاندارد 2800 ایران
B67: نیمه صلب | C67: وضعیت دیافراگـــــــم‌ها از نظر صلبیــــت : | D67: =IF(F67=Options!B6,0.35,IF('Main Form'!F67=Options!B7,0.3,IF('Main Form'!F67=Options!B8,0.25,0.2))) -> 0.3 | E67: نسبت شتاب مبنای طـــــــــــرح : | F67: پهنه با خطر نسبی زیـــــــاد | G67: منطقــــه لرزه‌خیـــــــــــــــــــــزی :
B68: متعـــــارف | C68: نوع ساختمان (توزیع جرم و سختی در ارتفاع) : | D68: =IF(F68=Options!C26,1.4,IF('Main Form'!F68=Options!C27,1.2,IF('Main Form'!F68=Options!C28,1,0.8))) -> 1 | E68: ضریب اهمیــــت ساختمــــــــان : | F68: گروه 3 ( با اهمیت متوسط ) | G68: گروه‌بندی ساختمان بر حسب اهمیت :
B69: مانعی برای حرکت قاب‌ها ایجاد نمی‌کنند | C69: جداگــــــــرهـای میـــــانقــــــابـــــــــی : | D69: =Options!I11 -> 1.1 | E69: پارامترهای مربوط به روابط تعیین ضریب شکل طیف (B1) : | F69: ( زمین تیپ ســه ) III | G69: طبقه بندی نــــــوع زمیــــــــــــــن :
B70: خطی / دینامیکی طیفی | C70: روش تحلیـــــــــــــــل ســــــــــــــــازه : | D70: =Options!H11 -> 1.75 | F70: روی فونداسیون | G70: محل تراز پایـــــــــــــــــه ساختمان :
B71: طیف طرح استاندارد | C71: روش تعیین اثر حرکت زمین در ساختگــاه : | D71: =Options!F11 -> 0.7 | F71: 10 | G71: ارتفـــــــاع ساختمان از تراز پایـــــه :
C72: تعــــداد مـــــودهــای نوســــــــــــــــان : | D72: =Options!E11 -> 0.15 | F72: 3 | G72: تعداد طبقـــات ساختمان از تراز پایه :
B73: ترکیب مربعی کامل (CQC) | C73: روش ترکیــــب اثــر مدهــــــــــــــــــــا : | D73: 20 | E73: بیشترین بعد افقی ســــازه در پلان : | F73: 500 | G73: وزن موثـــــر لـــــــــــــــــــرزه‌ای :
B74: =Options!B70 -> 0.85 ( Vstatic / Vdynamic ) | C74: ضریب اصـــلاح بازتــاب‌ها (در صورت نیاز) : | F74: 1 | G74: ضریب بزرگ‌نمایی توپوگرافــــــــی :
G76: سایر توضیحــــــــــــــــــــــــــات :
B78: =Options!D4 -> هـ- در صورتی‌که طبق ضوابط برای تعیین نوع زمین انجام مطالعات ویژه ساختگاه الزامی نباشد، به‌کار بردن طیف طرح استاندارد مجاز است. | D78: =Options!H23 -> ج- حداکثر ارتفاع مجاز سیستم سازه‌ای در هر دو راستا رعایت شده است. | F78: =IF(OR(F72<=3,AND(H<=50,B46=Options!B75,B56=Options!E75,B59=Options!E89)),Options!D8,Options!D9) -> الف- به‌کار گرفتن روش استاتیــــــــــــــکی معادل مجاز است.
D79: =Options!H25 -> د- استفاده از سیستم‌های دوگانه یا با عنوان «ویژه» الزامی نیست. | F79: =IF(OR(F68=Options!C26,F68=Options!C27,H>50,F72>15),Options!D10,Options!D11) -> ب- کنترل سازه برای بار زلزله سطح بهره‌برداری الزامی نیست.
B81: * ( تعیین مقادیر بصورت خودکار ) * مسئولیت صحت مقادیر بطور کامل بر عهده مهندس محاسب می‌باشد | D81: پارامتـــــرهای لــــــرزه‌ای در دو امتـــــــداد اصلــی و متعامــد ســـــــــازه
B83: راستـــای Y | D83: راستـــای X | F83: امتـــــــــــــــــــــــــــــداد اصلـــــــــــــــــــــی ســــــــــــــــــازه :
B84: سیستم دوگانه یا ترکیبی / قاب خمشی بتن آرمه متوسط + دیوار برشی بتن آرمه متوسط | D84: سیستم قاب خمشی / قاب خمشی بتن آرمه متوسط | F84: سیستــــــــم سـازه / سیستـــــــــم مقاوم در برابر نیروهای جانبی :
B85: =IF(OR(B84=Options!A32,B84=Options!A33,B84=Options!A34,B84=Options!A35,B84=Options!A36,B84=Options!A37,B84=Options!A38),VLOOKUP($B$84,Options!$A$31:$E$62,5,),IF(OR(D84=Options!A32,D84=Options!A33,D84=Options!A34,D84=Options!A35,D84=Options!A36,D84=Options!A37,D84=Options!A38),MIN(VLOOKUP($B$84,Options!$A$31:$E$62,5,),D85),VLOOKUP($B$84,Options!$A$31:$E$62,5,))) -> 6 | D85: =IF(OR(D84=Options!A32,D84=Options!A33,D84=Options!A34,D84=Options!A35,D84=Options!A36,D84=Options!A37,D84=Options!A38),VLOOKUP($D$84,Options!$A$31:$E$62,5,),IF(OR(B84=Options!A32,B84=Options!A33,B84=Options!A34,B84=Options!A35,B84=Options!A36,B84=Options!A37,B84=Options!A38),MIN(VLOOKUP($D$84,Options!$A$31:$E$62,5,),B85),VLOOKUP($D$84,Options!$A$31:$E$62,5,))) -> 5 | F85: ضریب رفتــــــــــــــــــــــــــــــــار ساختمـــــــــــــــــــان (Ru) :
B86: =VLOOKUP($B$84,Options!$A$31:$E$62,4,) -> 2.5 | D86: =VLOOKUP($D$84,Options!$A$31:$E$62,4,) -> 3 | F86: ضریب اضافــــــــــــــه مقاومــــــــــت ســــــــــــــــــــازه (W0) :
B87: =VLOOKUP($B$84,Options!$A$31:$E$62,3,) -> 4.5 | D87: =VLOOKUP($D$84,Options!$A$31:$E$62,3,) -> 4.5 | F87: ضریب بزرگ‌نمایی تغییـــــــــــــــــرمکان جانبی ســـــــــازه (Cd) :
B88: =VLOOKUP($B$84,Options!$A$31:$E$62,2,) -> 50 | D88: =VLOOKUP($D$84,Options!$A$31:$E$62,2,) -> 35 | F88: حداکثر ارتفــــــــــــــــــاع مجــــاز ساختمـــــــــــــــــــان (Hm) :
B89: =CONCATENATE("سیستم سازه‌ای : ",Options!E4) -> سیستم سازه‌ای : سایر سیستم ها | C89: محاسبه بصورت خودکار : | D89: =CONCATENATE("سیستم سازه‌ای : ",Options!E3) -> سیستم سازه‌ای : قاب خمشی بتن آرمه | E89: محاسبه بصورت خودکار : | F89: زمان تناوب اصلی نوســـان ساختمان حاصل از روابط تجـــــربی (Te) :
B90: =CONCATENATE(Options!A4," ",Options!B4," sec") -> Ty.e = 0.05 H^0.75 = 0.28 sec | C90: 0.5 | D90: =CONCATENATE(Options!A3," ",Options!B3," sec") -> Tx.e = 0.05 H^0.90 = 0.4 sec | E90: 1.2
B91: 0 | D91: 5 | F91: زمان تناوب اصلی نوســـان حاصل از تحلیل دینامیکـــــــــــــی (TD) :
B92: =IF(OR(C92=Options!J27,B68=Options!B14),IF(TDy=0,Options!B4,IF(B68=Options!B13,MIN(TDy,1.25*Options!B4),IF(B69=Options!C20,0.8*TDy,TDy))),Options!B4) -> 0.28 | C92: با استفاده از تحلیل دینامیکی و حداکثر 1/25Te : | D92: =IF(OR(E92=Options!J27,B68=Options!B14),IF(TDx=0,Options!B3,IF(B68=Options!B13,MIN(TDx,1.25*Options!B3),IF(B69=Options!C20,0.8*TDx,TDx))),Options!B3) -> 0.5 | E92: با استفاده از تحلیل دینامیکی و حداکثر 1/25Te : | F92: زمان تناوب اصلی نوسان ساختمان جهت تعیین ضـــریب زلــزله (T) :
B93: =CONCATENATE(Options!C1,Options!D1,"=",ROUND(Options!K5,2)) -> T0<Ty<Ts; B1y=S+1=2.75 | C93: 2.61 | D93: =CONCATENATE(Options!A1,Options!B1,"=",ROUND(Options!K7,2)) -> T0<Tx<Ts; B1x=S+1=2.75 | E93: 1.59 | F93: ضریب شکـــــــــــــــــــــــل طیــــــــــــــــــــــــــــــــف (B1) :
B94: =CONCATENATE(Options!C2,Options!D2,"=",ROUND(Options!K6,2)) -> Ty<Ts; Ny=1=1 | C94: 1.01 | D94: =CONCATENATE(Options!A2,Options!B2,"=",ROUND(Options!K8,2)) -> Tx<Ts; Nx=1=1 | E94: 1.11 | F94: ضریب اصــــــــــــــــــــــلاح طیــــــــــــــــــــــــــــــــــف (N) :
B95: =Options!K5*Options!K6 -> 2.75 | C95: 2.63 | D95: =Options!K7*Options!K8 -> 2.75 | E95: 1.75 | F95: ضریب بازتـــــــــــــــــــــــاب ساختمــــــــــــــــــان (B=B1.N) :
B96: 1 | C96: 1.67 | D96: 1 | E96: 1 | F96: ضریب بزرگ‌نمایی بـــــــــــــرون‌مرکـــــــــــزی اتفاقــــــی (Aj) :
B97: 1 | C97: 1.2 | D97: 1 | E97: 1 | F97: ضریب نامعینــــــــــــــــــــــی ســــــــــــــــــــــــــــــــازه (r) :
B98: =0.12*D67*D68 -> 0.036 | C98: 0.036 | D98: =0.12*D67*D68 -> 0.036 | E98: 0.36 | F98: حداقــل مقدار ضریب زلزلـــــــــه ساختمـــــــان (Cmin=0.12 A.I) :
B99: =MAX(0.12*D67*D68,D67*By*D68/B85)*B97*F74 -> 0.1375 | C99: 0.1579 | D99: =MAX(0.12*D67*D68,D67*Bx*D68/D85)*D97*F74 -> 0.165 | E99: 0.1056 | F99: ضریب زلزله ساختمان (با اعمال ضریب نامعینی) (r.C=r.A.B.I/R) :
B100: =IF(Ty<0.5,1,IF(Ty>2.5,2,0.5*Ty+0.75)) -> 1 | C100: 1.119 | D100: =IF(Tx<0.5,1,IF(Tx>2.5,2,0.5*Tx+0.75)) -> 1 | E100: 1.356 | F100: ضریب K (با توجه به زمان تناوب نوسان اصلی سازه: K=0.5 T + 0.75) :
B101: =B99*F73 -> 68.75 | C101: 497.25 | D101: =D99*F73 -> 82.5 | E101: 332.68 | F101: نیروی برشـی پایـــــــــــه (برش پایـه) در حد مقاومـــــــــت (Vu) :
G103: سایر توضیحـــــــــــات :
B105: =B81 -> * ( تعیین مقادیر بصورت خودکار ) * مسئولیت صحت مقادیر بطور کامل بر عهده مهندس محاسب می‌باشد | D105: پارامترهای کنتـــرل تغییـــــرمکان جانبــی ســـــازه و تعیین عــرض درز انقـــــطاع
B107: راستـــای Y | D107: راستـــای X | F107: امتـــــــــــــــــــــــــــــداد اصلـــــــــــــــــــــی ســــــــــــــــــازه :
B108: =Drift!A28 -> 0.1375 | C108: 0.1038 | D108: =Drift!C28 -> 0.03927 | E108: 0.0826 | F108: ضریب زلزلـــــــه ساختمان برای کنترل جابجایـــی ( Cdrift=A.B.I/R ) :
B109: =Drift!A29 -> 1 | C109: 1.14 | D109: =Drift!C29 -> 2 | E109: 1.52 | F109: ضریب K برای کنتــرل جابجایـــــــــــــی ( Kdrift=0.5 T + 0.75 ) :
B110: =Drift!A30 -> 0.005555555556 | C110: 0.0044 | D110: =Drift!C30 -> 0.005555555556 | E110: 0.0044 | F110: مقدار مجـاز تغییر مکان جانبی نسبی طبقه زیر اثر زلزله طرح ( Da/h ) :
B111: 0.002 | C111: 0.0015 | D111: 0.003 | E111: 0.002 | F111: حداکثـر تغییر مکان جانبی نسبی طبقه زیر اثر زلزله طـــرح (Deu.max) :
B112: 3.5 | C112: 5 | D112: 6 | E112: 6 | F112: تغییر مکان جانبـــــــــی آخرین طبقه زیر اثر زلزله طرح (Deu.roof) :
B113: =CONCATENATE(IF(OR($F$68=Options!$C$26,$F$68=Options!$C$27,$F$72>8),"Max(0.7Cd.Deu & 0.005H) = ","0.005H = "),Options!K10," cm") -> 0.005H = 5 cm | C113: 13.5 | D113: =CONCATENATE(IF(OR($F$68=Options!$C$26,$F$68=Options!$C$27,$F$72>8),"Max(0.7Cd.Deu & 0.005H) = ","0.005H = "),Options!K11," cm") -> 0.005H = 5 cm | E113: 18.9 | F113: حداقل عـرض درز انقطاع مورد نیاز بین ساختمان و ساختمان‌های مجاور :
G115: سایر توضیحــــــــــات :
B117: مشخصــات ژئوتکنیکی ساختگاه، طراحی فونداسیون و دیوار حائل
B119: تعبیه شده است. | C119: دیـــوار(های) نگهبـــان دائـم خـــــــــاک : | D119: 1 | E119: مدول ارتجاعــــی بستر در ناحیه مرکــزی : | F119: شبکه‌ای | G119: نوع پـــــی (از نظر هندسه، رفتار و عمق استقرار) :
B120: 0.5 | C120: ضریب فشار جانبی خاک (در حالت سکــون) : | D120: 2 | E120: مدول ارتجاعـــی بستر در نواحی پیرامونی : | F120: 80 | G120: ضخـــامــــــت پـــــــــــــــــــــــــــــی :
B121: 0.4 | C121: ضریب فشار جانبی خاک (در حالت محـرک) : | D121: 5 | E121: حداکثر نشســــت یکنـــواخـــت پـــــــی : | F121: انعطاف‌پذیر | G121: وضعیـــت پــــــی از نظـر صلبیـــــــــــت :
B122: در نظر گرفته شده است. | C122: فشار جانبی خاک در هنگام زلزلــــــــــــه : | D122: 2 | E122: حداکثر نشســــت غیر یکنـــواخت پـــــی : | F122: دانه‌ای | G122: نوع خاک (مقایسه تنش زیر پی با ظرفیت باربری) :
B123: 1800 | C123: وزن مخصــــوص خاک محـل ساختـــــگاه : | D123: 0.004 | E123: حداکثر چرخش پی (در حد خرابی ســازه‌ای) : | F123: -235 | G123: عمق استقــرار پــی (نسبت به تراز زمین مجاور) :
B124: دیوار نگهبان کاملاً متصل به سازه، و بدون قابلیت جابجایی | C124: نحــــــوه اتصــال و تغییــــر شکل‌پذیــری دیوار نگهبـان : | D124: 0.002 | E124: حداکثر چرخش پـی (در حد ایجاد تـــــرک) : | F124: -800 | G124: تـراز آب‌زیرزمینی (نسبت به تراز زمین مجاور) :
D125: 1.5 | E125: حداکثر تنـــش محاسبه شــده زیر پــــــی : | F125: انجام شده است. | G125: شناســـایی ژئوتکنیــــــکی زمین ساختگاه :
D126: 0.8 | E126: تنش موثر متوسط محاسبه شده زیر پــــی : | F126: =Options!F71 -> ظرفیت باربری مجاز > تنش متوسط | G126: روش کنتـــرل تنــــش زیـــر پـــــــــــی :
G128: سایــر توضیحــــــــــــــــــــــــــــــات :
B130: چک‌لیســـت نقشــــــه‌های اجــــرایی ســـــــازه
B132: تیــــــــــــــــــرها و سقف‌ها | E132: فونداسیـــــــــــــــــــــــون
B133: ارائه شده است. | C133: پلان تیرریزی و پوشش سقف در ترازهای مختلف (داکت‌، بازشو، رامپ، پله، بالکن‌ و ... ) : | E133: ارائه شده است. | F133: پلان فونداسیـــــون (ابعاد و تراز ارتفاعی) و جزئیات اجرایی مقاطع مختلف آن :
B134: ارائه شده است. | C134: جزئیات اجـرایی مقاطـــــــع مختلف تیــــــــــــــــرها و اتصـــــــــالات مربوطه : | E134: ارائه شده است. | F134: جزئیات اجرایی آرایش میلگــــــــــردهای طولی، عرضی و تقویتی فونداسیون :
B135: ارائه شده است. | C135: جزئیات اجرایــــــــــی پلکـــــــــــــــــــــــــــان و اتصــــــــــــالات مربوطـه : | E135: ارائه شده است. | F135: جزئیات وصلـــــــــــه، قلاب و قطر داخلی خم میلگــــــــــردهای فونداسیون :
B136: ارائه شده است. | C136: جزئیات اجرایی سقــــــــــــــــــــــــــف‌ها و مقاطـــــــــــــــــــع مختلـف آن : | E136: ارائه شده است. | F136: محل استقرار و ابعاد چاله آسانســــــور و سایر بازشــــــــــوها در فونداسیون :
B138: ستـــــــــــــــــــــــــــون‌ها | E138: کف‌ستــــــــــــــــــــون‌ها
B139: ارائه شده است. | C139: پــــــلان محــــــــــــل استقــــــــــــرار ستــــــــــــــــــــــــــــــــــــون‌ها : | E139: ارائه شده است. | F139: پــــــــــلان محـــــــــل استقـــــــرار کـف‌ستـــــــــــــــــــون‌هـــــــــــا :
B140: ارائه شده است. | C140: جزئیات اجرایی ستـــــــــــــــونها در ارتفـــــــــاع و مقاطـــــــــــع مختلف آن : | E140: ارائه شده است. | F140: جزئیات اجرایی انواع کف‌ستـــــــــــــــــون‌ها و ورق‌های سخت کننده آن‌ها :
B141: ارائه شده است. | C141: جزئیات اجرایی وصلــــــــــــه ستــــــــــــــون‌ها و محل تعبیـــــــــــــه آن‌ها : | E141: ارائه شده است. | F141: جزئیات اجرایی میل‌مهــــــــــــــــــارها و محل استقرار آنها روی کف ستون :
B143: توضیحـــــــــــات ضــروری | E143: مهاربندها / دیوارهای برشی
B144: ارائه شده است. | C144: مشخصات مکانیکی مصالح ســـــــــــــازه‌ای در فونداسیــــون، اسکلت و سقف‌ها : | E144: ارائه شده است. | F144: پلان محل استقـرار مهاربنــــــــــــــدها / دیوارهای برشــــــــــــــــــــــــی :
B145: ارائه شده است. | C145: مشخصات مصالـــح غیر‌ســازه‌ای (دیوارچینی داخلی و خارجی، کف سازی، شیب‌بندی و ... ) : | E145: ارائه شده است. | F145: جزئیات اجرایی مهاربنـــــــــدها / دیوارهای برشی در ارتفاع و مقاطع مربوطه :
B146: ارائه شده است. | C146: مشخصات فرض شده برای خــــــــاک ساختگــــاه و سایر توصیــه های فنی لازم : | E146: ارائه شده است. | F146: جزئیات اجرایی اتصالات اعضاء مهاربنــــــــدی / دیوارهای برشـــــــــــــــی :
B148: گزارش هماهنگی نقشه‌های اجرایی سازه با نقشه‌های مصوب معماری
B150: تیــــــــــــــــــرها و سقف‌ها | E150: فونداسیـــــــــــــــــــــــون
B151: با نقشه‌های معماری مطابقت دارد. | C151: محل استقرار نورگیرها، داکت‌ها، پیش‌آمدگی‌ها و پله‎ها در پلان‌های تیرریـــــزی : | E151: با نقشه‌های معماری مطابقت دارد. | F151: مرز زمیـــــــن و محدوده گودبــرداری زیرزمیــــن در پلان فونداسیـــــــــــــــون :
B152: با نقشه‌های معماری مطابقت دارد. | C152: ابعــــــــــاد نورگیرها، داکت‌ها، پیش‌آمدگی‌ها و پله‎ها در پلان‌های تیرریـــــزی : | E152: با نقشه‌های معماری مطابقت دارد. | F152: تراز ارتفاعی سطــــح روی بتن فونداسیــــــــــون با توجه به ضخامت کف‌ســـــازی :
B153: با نقشه‌های معماری مطابقت دارد. | C153: ابعـــــــاد اجرایی (عــــرض و عمــــق) مقاطـــــع مختلف تیــــــــــــــــــــرها : | E153: با نقشه‌های معماری مطابقت دارد. | F153: محل استقـــرار چاله آسانســــــور و سایر بازشــــــوهای ضروری در فونداسیــــون :
B154: با نقشه‌های معماری مطابقت دارد. | C154: محل استقرار و ابعاد اتصالات و وصله تیرها از نظر رعایت ارتفاع مورد نیاز فضاها : | E154: با نقشه‌های معماری مطابقت دارد. | F154: ابعــــــــاد چاله آسانســــــور و سایر بازشــــــوهای ضــــروری در فونداسیـــــون :
B156: پلکــــــــــــــــــــــــــــــان | E156: ستــــــون‌ها و کف‌ستـون‌ها
B157: با نقشه‌های معماری مطابقت دارد. | C157: تـــــــــــــراز اجـرایــــــــــــی تیـــــــــــــــــــــــرهای پاگــــــــــــــــرد : | E157: با نقشه‌های معماری مطابقت دارد. | F157: محل استقرار کف‌ستون‌ها (رعایت درز انقطاع، معبر و پلاک مجاور، چاله آسانسور و سایر بازشوها) :
B158: با نقشه‌های معماری مطابقت دارد. | C158: تــــراز اجرایـی تیــــــرهای پیرامــونی راه‌پله و عدم شانه‌گیــــــــــــری آن‌ها : | E158: با نقشه‌های معماری مطابقت دارد. | F158: محـــــل استقــــــــــرار ستـــــــــون‌ها در پـلان‌های پارکینــــگ و سایر طبقـــات :
B159: با نقشه‌های معماری مطابقت دارد. | C159: عرض ســـــــازه‌ای رامـــــــــــپ پلـــــــــــــــه و پاگــــــــــــــــــــــردها : | E159: با نقشه‌های معماری مطابقت دارد. | F159: ابعاد اجرایی (طول و عرض) مقاطع مختلف ستــــــون‌ها در پارکینــگ و سایر طبقات :
B160: با توجه به نحوه ارزیابی از موارد فوق و به لحاظ نوع سازه، نقشه‌های اجرایی سازه با نقشه‌های مصوب معماری فاز یک انطباق دارد. | E160: با نقشه‌های معماری مطابقت دارد. | F160: ارتفاع ستـــــــــــــون‌ها با توجه به تــــــراز ارتفاعــــی رو و زیر تیرها در هر طبقه :
B161: مهر و امضا مهندس طراح معماری :
E162: مهاربندها / دیوارهای برشی
E163: با نقشه‌های معماری مطابقت دارد. | F163: محل استقـــــــــرار مهاربنــــــــــــدها / دیوارهای برشـــــــــــــــــی در پلان‌ها :
E164: با نقشه‌های معماری مطابقت دارد. | F164: محل استقـــــــــرار مهاربنــــــــــــدها / دیوارهای برشـــــــــــــــــی در قاب‌ها :
B166: سایر موارد الزامی که به پیوست این گزارش ارائه می‌شود
B168: ت- نقشـــــــــــــــــــه‌های ســـــــــــــــــــــــــازه بصورت فایل در قالب PDF یا DWG . | E168: الف- تمامی فایل‌های مدل‌ســــــــــازی سازه، فونداسیون و دال‌های سقف درقالب E2K یا S2K و F2K .
B169: ث- آلبوم نقشه‌های سازه مهر شده توسط مهندس محاسب و آلبوم نقشه‌های معماری مصوب . | E169: ب- بررسی‌های منظمی ساختمان در پلان و ارتفاع، تعیین ضریب نامعینی (r) و . . . در قالب فایل PDF .
B170: ج- سایر موارد به صلاحدید مهندس محاســـــــب یا بنا به درخواست مهنــــــــــدس بازبین . | E170: پ- کنترل‎های تغییرمکان جانبی، نمونه طراحی اتصــــــالات، قطعات الحاقی و . . . در قالب فایل PDF .

Sheet Drift (hidden)
A1: تعیین ضریب زلزله کنترل جابجایی بر اساس ویرایش چهارم استاندارد 2800 ایران
A2: A. Edrissi
D3: ='Main Form'!F67 -> پهنه با خطر نسبی زیـــــــاد | E3: منطقه لرزه خیزی :
C4: A = | D4: ='Main Form'!D67 -> 0.3 | E4: نسبت شتاب مبنای طرح :
D5: ='Main Form'!F69 -> ( زمین تیپ ســه ) III | E5: طبقه بندی نوع زمین :
D6: ='Main Form'!F68 -> گروه 3 ( با اهمیت متوسط ) | E6: گروه بندی ساختمان بر حسب اهمیت :
C7: I = | D7: ='Main Form'!D68 -> 1 | E7: ضریب اهمیت ساختمان :
A8: ='Main Form'!F72 -> 3 | B8: تعداد طبقات ساختمان : | C8: H = | D8: ='Main Form'!I13 -> 0 | E8: ارتفاع ساختمان از تراز پایه :
A9: ='Main Form'!B69 -> مانعی برای حرکت قاب‌ها ایجاد نمی‌کنند | B9: جداگرهای میانقابی مانعی برای حرکت قاب ها ایجاد | D9: ='Main Form'!B68 -> متعـــــارف | E9: نوع ساختمان :
B10: =Options!B3 -> 0.4 | C10: زمان تناوب اصلی نوسان در جهت X : | D10: =Options!E3 -> قاب خمشی بتن آرمه | E10: سیستم سازه ای در جهت X :
B11: =Options!B4 -> 0.28 | C11: زمان تناوب اصلی نوسان در جهت Y : | D11: =Options!E4 -> سایر سیستم ها | E11: سیستم سازه ای در جهت Y :
A12: T0 = | B12: =Options!E11 -> 0.15 | C12: S = | D12: =Options!H11 -> 1.75 | E12: پارامترهای مربوط به روابط تعیین ضریب شکل طیف (B1) :
A13: Ts = | B13: =Options!F11 -> 0.7 | C13: S0 = | D13: =Options!I11 -> 1.1
A14: =CONCATENATE(IF(Tx<T0,"0<Tx<T0",IF(AND(Tx>T0,Tx<Ts),"T0<Tx<Ts","Tx>Ts"))," So: B1x =") -> T0<Tx<Ts So: B1x = | B14: =IF(Tx<T0,"S0+(S-S0+1)(T/T0)",IF(Tx<Ts,"S+1","(S+1) (Ts/T)")) -> S+1 | C14: =CONCATENATE(IF(Ty<T0,"0<Ty<T0",IF(AND(Ty>T0,Tx<Ts),"T0<Ty<Ts","Ty>Ts"))," So: B1y =") -> T0<Ty<Ts So: B1y = | D14: =IF(Ty<T0,"S0+(S-S0+1)(T/T0)",IF(Ty<Ts,"S+1","(S+1)(Ts/T)")) -> S+1 | E14: ضریب شکل طیف :
A15: =CONCATENATE(IF(Tx<Ts,"Tx<Ts",IF(AND(Tx>Ts,Tx<4),"Ts<Tx<4 sec","Tx>4 sec"))," So: Nx =") -> Tx<Ts So: Nx = | B15: =IF(OR(D3=Options!B2,Drift!D3=Options!B3),IF(Tx<Ts,1,IF(Tx<4,"0.7/(4-Ts)*(Tx-Ts)+1",1.7)),IF(Tx<Ts,1,IF(Tx<4,"0.4/(4-Ts)*(Tx-Ts)+1",1.4))) -> 1 | C15: =CONCATENATE(IF(Ty<Ts,"Ty<Ts",IF(AND(Ty>Ts,Ty<4),"Ts<Ty<4 sec","Ty>4 sec"))," So: Ny =") -> Ty<Ts So: Ny = | D15: =IF(OR(D3=Options!B2,Drift!D3=Options!B3),IF(Ty<Ts,1,IF(Ty<4,"0.7/(4-Ts)*(Ty-Ts)+1",1.7)),IF(Ty<Ts,1,IF(Ty<4,"0.4/(4-Ts)*(Ty-Ts)+1",1.4))) -> 1 | E15: ضریب اصلاح طیف :
A17: جهت Y | C17: جهت X
A18: ='Main Form'!B84 -> سیستم دوگانه یا ترکیبی / قاب خمشی بتن آرمه متوسط + دیوار برشی بتن آرمه متوسط | C18: ='Main Form'!D84 -> سیستم قاب خمشی / قاب خمشی بتن آرمه متوسط | E18: سیستم سازه / سیستم مقاوم در برابر نیروهای جانبی :
A19: ='Main Form'!B85 -> 6 | C19: ='Main Form'!D85 -> 5 | E19: ضریب رفتار ساختمان (Ru) :
A20: ='Main Form'!B87 -> 4.5 | C20: ='Main Form'!D87 -> 4.5 | E20: ضریب بزرگنمایی تغییر مکان جانبی سازه (Cd) :
A21: ='Main Form'!B91 -> 0 | C21: ='Main Form'!D91 -> 5 | E21: زمان تناوب اصلی نوسان حاصل از تحلیل دینامیکی (TD) :
A22: ='Main Form'!B90 -> Ty.e = 0.05 H^0.75 = 0.28 sec | C22: ='Main Form'!D90 -> Tx.e = 0.05 H^0.90 = 0.4 sec | E22: زمان تناوب تجربی :
A23: ='Main Form'!B92 -> 0.28 | C23: ='Main Form'!D92 -> 0.5 | E23: زمان تناوب ساختمان جهت تعیین ضریب زلزله طراحی (T) :
A24: =MAX(TDy,Ty) -> 0.28 | C24: =MAX(TDx,Tx) -> 5 | E24: زمان تناوب ساختمان جهت تعیین ضریب زلزله تغییرمکان (Tdrift) :
A25: =IF(A24<T0,s0+(S-s0+1)*(A24/T0),IF(A24<Ts,S+1,(S+1)*(Ts/A24))) -> 2.75 | C25: =IF(C24<T0,s0+(S-s0+1)*(C24/T0),IF(C24<Ts,S+1,(S+1)*(Ts/C24))) -> 0.385 | E25: ضریب شکل طیف (B1) :
A26: =IF(D4>=0.3,IF(A24<Ts,1,IF(A24<4,0.7/(4-Ts)*(A24-Ts)+1,1.7)),IF(A24<Ts,1,IF(A24<4,0.4/(4-Ts)*(A24-Ts)+1,1.4))) -> 1 | C26: =IF(D4>=0.3,IF(C24<Ts,1,IF(C24<4,0.7/(4-Ts)*(C24-Ts)+1,1.7)),IF(C24<Ts,1,IF(C24<4,0.4/(4-Ts)*(C24-Ts)+1,1.4))) -> 1.7 | E26: ضریب اصلاح طیف (N) :
A27: =A25*A26 -> 2.75 | C27: =C25*C26 -> 0.6545 | E27: ضریب بازتاب ساختمان ( B=B1.N ) :
A28: =IF(D7=1.4,'Main Form'!B99/'Main Form'!B97,MAX(0.12*D4*D7,D4*By*D7/A19)) -> 0.1375 | C28: =IF(D7=1.4,'Main Form'!B99/'Main Form'!B97,MAX(0.12*D4*D7,D4*Bx*D7/C19)) -> 0.03927 | E28: ضریب زلزله ساختمان برای کنترل جابجایی ( C=A.B.I/R ) :
A29: =IF(A24<0.5,1,IF(A24>2.5,2,0.5*A24+0.75)) -> 1 | C29: =IF(C24<0.5,1,IF(C24>2.5,2,0.5*C24+0.75)) -> 2 | E29: ضریب K ء( K=0.5 T + 0.75 ) :
A30: =IF(A8<=5,0.025/A20,0.02/A20) -> 0.005555555556 | C30: =IF(A8<=5,0.025/C20,0.02/C20) -> 0.005555555556 | E30: حداکثر مجاز تغییر مکان جانبی نسبی طبقه (Deu) :

Sheet Options (hidden)
A1: =CONCATENATE(IF(Tx<T0,"0<Tx<T0",IF(AND(Tx>T0,Tx<Ts),"T0<Tx<Ts","Tx>Ts")),"; B1x=") -> T0<Tx<Ts; B1x= | B1: =IF(Tx<T0,"S0+(S-S0+1)(T/T0)",IF(Tx<Ts,"S+1","(S+1)(Ts/T)")) -> S+1 | C1: =CONCATENATE(IF(Ty<T0,"0<Ty<T0",IF(AND(Ty>T0,Tx<Ts),"T0<Ty<Ts","Ty>Ts")),"; B1y=") -> T0<Ty<Ts; B1y= | D1: =IF(Ty<T0,"S0+(S-S0+1)(T/T0)",IF(Ty<Ts,"S+1","(S+1)(Ts/T)")) -> S+1 | F1: ضریب شکل طیف : | J1: 1
A2: =CONCATENATE(IF(Tx<Ts,"Tx<Ts",IF(AND(Tx>Ts,Tx<4),"Ts<Tx<4","Tx>4")),"; Nx=") -> Tx<Ts; Nx= | B2: =IF(OR('Main Form'!F67=Options!B6,'Main Form'!F67=Options!B7),IF(Tx<Ts,1,IF(Tx<4,"0.7/(4-Ts)(Tx-Ts)+1",1.7)),IF(Tx<Ts,1,IF(Tx<4,"0.4/(4-Ts)(Tx-Ts)+1",1.4))) -> 1 | C2: =CONCATENATE(IF(Ty<Ts,"Ty<Ts",IF(AND(Ty>Ts,Ty<4),"Ts<Ty<4","Ty>4")),"; Ny=") -> Ty<Ts; Ny= | D2: =IF(OR('Main Form'!F67=Options!B6,'Main Form'!F67=Options!B7),IF(Ty<Ts,1,IF(Ty<4,"0.7/(4-Ts)(Ty-Ts)+1",1.7)),IF(Ty<Ts,1,IF(Ty<4,"0.4/(4-Ts)(Ty-Ts)+1",1.4))) -> 1 | F2: ضریب اصلاح طیف : | J2: 1.2
A3: =IF(OR(E3=B18,E3=B20),IF('Main Form'!B69=B24,"Tx.e = 0.08 H^0.75 =","Tx.e = 0.8*0.08 H^0.75 ="),IF(E3=B19,IF('Main Form'!B69=B24,"Tx.e = 0.05 H^0.90 =","Tx.e = 0.8*0.05 H^0.90 ="),IF(E3=B21,"Tx.e = 0.05 H^0.75 =",))) -> Tx.e = 0.05 H^0.90 = | B3: =IF('Main Form'!E89=Options!J37,ROUND(IF(OR(E3=B18,E3=B20),IF('Main Form'!B69=B24,0.08*H^0.75,0.8*0.08*H^0.75),IF(E3=B19,IF('Main Form'!B69=B24,0.05*H^0.9,0.8*0.05*H^0.9),IF(E3=B21,0.05*H^0.75))),2),'Main Form'!E90) -> 0.4 | C3: زمان تناوب اصلی نوسان در جهت X : | D3: ='Main Form'!F78 -> الف- به‌کار گرفتن روش استاتیــــــــــــــکی معادل مجاز است. | E3: =IF(OR('Main Form'!D$84=Options!$A$51,'Main Form'!D$84=Options!$A$52,'Main Form'!D$84=Options!$A$53),Options!$B$18,IF(OR('Main Form'!D$84=Options!$A$48,'Main Form'!D$84=Options!$A$49,'Main Form'!D$84=Options!$A$50),Options!$B$19,IF(OR('Main Form'!D$84=Options!$A$43,'Main Form'!D$84=Options!$A$44,'Main Form'!D$84=Options!$A$58,'Main Form'!D$84=Options!$A$59),Options!$B$20,Options!$B$21))) -> قاب خمشی بتن آرمه | F3: سیستم سازه ای در جهت X :
A4: =IF(OR(E4=B18,E4=B20),IF('Main Form'!B69=B24,"Ty.e = 0.08 H^0.75 =","Ty.e = 0.8*0.08 H^0.75 ="),IF(E4=B19,IF('Main Form'!B69=B24,"Ty.e = 0.05 H^0.90 =","Ty.e = 0.8*0.05 H^0.90 ="),IF(E4=B21,"Ty.e = 0.05 H^0.75 =",))) -> Ty.e = 0.05 H^0.75 = | B4: =IF('Main Form'!C89=Options!J37,ROUND(IF(OR(E4=B18,E4=B20),IF('Main Form'!B69=B24,0.08*H^0.75,0.8*0.08*H^0.75),IF(E4=B19,IF('Main Form'!B69=B24,0.05*H^0.9,0.8*0.05*H^0.9),IF(E4=B21,0.05*H^0.75))),2),'Main Form'!C90) -> 0.28 | C4: زمان تناوب اصلی نوسان در جهت Y : | D4: =IF(D3=D8,D12,IF(OR(C14>150,C15>3.5,C16>3.5),D13,IF(AND(OR(C12=C26,C12=C27,C14>50),C13<>C6,C13<>C7,C13<>C8),D13,IF(AND(C14>50,OR(C13=C7,C13=C8)),D14,D12)))) -> هـ- در صورتی‌که طبق ضوابط برای تعیین نوع زمین انجام مطالعات ویژه ساختگاه الزامی نباشد، به‌کار بردن طیف طرح استاندارد مجاز است. | E4: =IF(OR('Main Form'!B$84=Options!$A$51,'Main Form'!B$84=Options!$A$52,'Main Form'!B$84=Options!$A$53),Options!$B$18,IF(OR('Main Form'!B$84=Options!$A$48,'Main Form'!B$84=Options!$A$49,'Main Form'!B$84=Options!$A$50),Options!$B$19,IF(OR('Main Form'!B$84=Options!$A$43,'Main Form'!B$84=Options!$A$44,'Main Form'!B$84=Options!$A$58,'Main Form'!B$84=Options!$A$59),Options!$B$20,Options!$B$21))) -> سایر سیستم ها | F4: سیستم سازه ای در جهت Y :
A5: فولادی با اتصالات جوشــــــی | E5: T0 | F5: Ts | H5: S | I5: S0 | J5: B1y | K5: =IF(Ty<T0,s0+(S-s0+1)*(Ty/T0),IF(Ty<Ts,S+1,(S+1)*(Ts/Ty))) -> 2.75
A6: فولادی با اتصالات پیچ و مهره | B6: پهنه با خطر نسبی خیلی زیاد | C6: ( زمین تیپ یــک ) I | E6: 0.1 | F6: 0.4 | H6: 1.5 | I6: 1 | J6: N1y | K6: =IF(OR('Main Form'!F67=Options!B6,'Main Form'!F67=Options!B7),IF(Ty<Ts,1,IF(Ty<4,0.7/(4-Ts)*(Ty-Ts)+1,1.7)),IF(Ty<Ts,1,IF(Ty<4,0.4/(4-Ts)*(Ty-Ts)+1,1.4))) -> 1
A7: بتن‌آرمـــــــــــــــــــــــــــه | B7: پهنه با خطر نسبی زیـــــــاد | C7: ( زمین تیـــپ دو ) II | E7: 0.1 | F7: 0.5 | H7: 1.5 | I7: 1 | J7: B1x | K7: =IF(Tx<T0,s0+(S-s0+1)*(Tx/T0),IF(Tx<Ts,S+1,(S+1)*(Ts/Tx))) -> 2.75
A8: سایر | B8: پهنه با خطر نسبی متوســــط | C8: ( زمین تیپ ســه ) III | D8: الف- به‌کار گرفتن روش استاتیــــــــــــــکی معادل مجاز است. | E8: 0.15 | F8: 0.7 | H8: 1.75 | I8: 1.1 | J8: N1x | K8: =IF(OR('Main Form'!F67=Options!B6,'Main Form'!F67=Options!B7),IF(Tx<Ts,1,IF(Tx<4,0.7/(4-Ts)*(Tx-Ts)+1,1.7)),IF(Tx<Ts,1,IF(Tx<4,0.4/(4-Ts)*(Tx-Ts)+1,1.4))) -> 1
A9: تیرچه بتنی و بلوک پلی‌استایریـن | B9: پهنه با خطر نسبی کــــــــم | C9: ( زمین تیپ چهار ) IV | D9: الف- به‌کار گرفتن روش استاتیـــــــــــــکی معادل مجاز نیست. | E9: 0.15 | F9: 1 | H9: =IF(OR('Main Form'!F67=B8,'Main Form'!F67=B9),2.25,1.75) -> 1.75 | I9: =IF(OR('Main Form'!F67=Options!B8,'Main Form'!F67=Options!B9),1.3,1.1) -> 1.1
A10: تیرچه بتنی و بلوک سیمــــــــانی | C10: سایر | D10: ب- کنترل سازه برای بار زلزله سطح بهـره‌برداری الزامی است. | J10: exp joint y | K10: =IF(OR('Main Form'!$F$68=Options!$C$26,'Main Form'!$F$68=Options!$C$27,'Main Form'!$F$72>8),MAX(0.7*'Main Form'!B87*'Main Form'!B112,0.005*H*100),0.005*H*100) -> 5
A11: تیرچه فلزی و بلوک پلی‌استایرین | B11: =IF(OR('Main Form'!F17=Options!A14,'Main Form'!F17=Options!A16),2,1) -> 1 | C11: ='Main Form'!F67 -> پهنه با خطر نسبی زیـــــــاد | D11: ب- کنترل سازه برای بار زلزله سطح بهره‌برداری الزامی نیست. | E11: =IF($C$13=$C$6,E6,IF($C$13=$C$7,E7,IF($C$13=$C$8,E8,E9))) -> 0.15 | F11: =IF($C$13=$C$6,F6,IF($C$13=$C$7,F7,IF($C$13=$C$8,F8,F9))) -> 0.7 | H11: =IF($C$13=$C$6,H6,IF($C$13=$C$7,H7,IF($C$13=$C$8,H8,H9))) -> 1.75 | I11: =IF($C$13=$C$6,I6,IF($C$13=$C$7,I7,IF($C$13=$C$8,I8,I9))) -> 1.1 | J11: exp joint x | K11: =IF(OR('Main Form'!$F$68=Options!$C$26,'Main Form'!$F$68=Options!$C$27,'Main Form'!$F$72>8),MAX(0.7*'Main Form'!D87*'Main Form'!D112,0.005*H*100),0.005*H*100) -> 5
A12: تیرچه فلزی و بلوک سیمــــــانی | B12: =IF(OR('Main Form'!F16=Options!A5,'Main Form'!F16=Options!A6),1,2) -> 1 | C12: ='Main Form'!F68 -> گروه 3 ( با اهمیت متوسط ) | D12: هـ- در صورتی‌که طبق ضوابط برای تعیین نوع زمین انجام مطالعات ویژه ساختگاه الزامی نباشد، به‌کار بردن طیف طرح استاندارد مجاز است.
A13: دال بتن‌آرمــــــــــــــــه معمولی | B13: متعـــــارف | C13: ='Main Form'!F69 -> ( زمین تیپ ســه ) III | D13: هـ -به‌کار بردن طیف طرح استاندارد مجاز نبــــوده و می‌باید از طیـــــف طــــــــرح ویـــــــــژه ساختـــــــــگاه استفاده شود.
A14: دال بتن‌آرمه پس‌کشیـــــــــــده | B14: غیر متعارف | C14: ='Main Form'!F71 -> 10 | D14: هـ- در صورتی‌که ضخامت لایه خاک زیر ساختمان بیش از 60 متر باشد، می‌باید از طیف طرح ویـژه ساختگاه استفاده شود. | E14: ST-37 , Fy = 2400 kg/cm2 | F14: « ساختمان به لحاظ خصوصیات کالبدی در پلان منظـــــــــــــم است »
A15: دال بتن‌آرمه مجوف معمـــــــولی | B15: (توزیع جرم و سختی در ارتفاع عمدتاً بصورت متناسب تغییر می کند) | C15: =Tx -> 0.5 | D15: S340 , Fy = 3400 kg/cm2 | E15: ST-52 , Fy = 3600 kg/cm2 | F15: « ساختمان به لحاظ خصوصیات کالبدی دارای نامنظمــی در پلان است »
A16: دال بتن‌آرمه مجوف پس‌کشیــده | B16: (توزیع جرم و سختی در ارتفاع عمدتاً بصورت متناسب تغییر نمی کند) | C16: =Ty -> 0.28 | D16: S400 , Fy = 4000 kg/cm2 | E16: سایر | F16: « ساختمان به لحاظ خصوصیات کالبدی در ارتفاع منظـــــــــــم است » | H16: ارائه شده است.
A17: کامپوزیت (تیر فلزی + بتن رویه) | D17: S500 , Fy = 5000 kg/cm2 | F17: « ساختمان به لحاظ خصوصیات کالبدی دارای نامنظمی در ارتفاع است » | H17: لازم به ارائه نیست.
A18: کامپوزیت با عرشــــــــه فولادی | B18: قاب خمشی فولادی | C18: مانعی برای حرکت قاب‌ها ایجاد می‌کنند | D18: سایر
A19: سایر | B19: قاب خمشی بتن آرمه | C19: مانعی برای حرکت قاب‌ها ایجاد نمی‌کنند | E19: 1 | F19: سیم : ASTM A421M | H19: ج- حداکثر ارتفاع مجاز سیستم سازه‌ای در راستای X رعایت نشده است. | I19: =H -> 10 | J19: h
B20: مهاربندی واگرا | C20: در مدل تحلیلی منظور نشده‌اند | D20: ISO 8.8 | E20: 1.2 | F20: سیم با افت تنش کم : ASTM A421M | H20: ج- حداکثر ارتفاع مجاز سیستم سازه‌ای در راستای Y رعایت نشده است. | I20: ='Main Form'!D88 -> 35 | J20: x
A21: آجر سفــــال و ملات ماسه سیمان | B21: سایر سیستم ها | C21: در مدل تحلیلی منظور شده‌اند | D21: ISO 10.9 | E21: 1.4 | F21: رشته : ASTM A416M | H21: ج- حداکثر ارتفاع مجاز سیستم سازه‌ای در هر دو راستا رعایت نشده است. | I21: ='Main Form'!B88 -> 50 | J21: y
A22: بلوک پوکه‌ای و ملات ماسه سیمان | D22: ISO 12.9 | F22: میلگرد مقاومت بالا : ASTM A722M | H22: ج- حداکثر ارتفاع مجاز سیستم سازه‌ای در هر دو راستا رعایت شده است.
A23: تیغه های سبک (دیوار ساندویچی) | B23: =IF('Main Form'!B68=Options!B13,Options!C18,Options!C20) -> مانعی برای حرکت قاب‌ها ایجاد می‌کنند | D23: ___ | E23: نرم | H23: =IF(AND(I19<=I20,I19<=I21),H22,IF(AND(I19>I20,I19>I21),H21,IF(I19>I20,H19,H20))) -> ج- حداکثر ارتفاع مجاز سیستم سازه‌ای در هر دو راستا رعایت شده است.
A24: سایر | B24: =IF('Main Form'!B68=B13,Options!C19,Options!C21) -> مانعی برای حرکت قاب‌ها ایجاد نمی‌کنند | D24: خطی / استاتیکی معادل | E24: نیمه صلب
D25: خطی / دینامیکی طیفی | E25: صلب | H25: =IF(AND(C12=C26,C11=B6),H26,IF(OR(C14>50,'Main Form'!F72>15),Options!H27,H28)) -> د- استفاده از سیستم‌های دوگانه یا با عنوان «ویژه» الزامی نیست.
A26: بتن سبک هوادار و گازی (فوم بتن) | B26: دارد. | C26: گروه 1 ( با اهمیت خیلی زیاد ) | D26: خطی / دینامیکی تاریخچه زمانی | F26: کمتر از 3 | H26: د- استفاده از سیستم‌هایی که عنوان «ویژه» دارند الزامی است. | J26: برابر مقدار به دست آورده شده از روابط تجربی :
A27: بتن با پوکه معـدنی و سیمـــــــــان | B27: ندارد. | C27: گروه 2 ( با اهمیت زیاد ) | D27: غیر‌خطی / استاتیکی (پوش اور) | E27: با نقشه‌های معماری مطابقت دارد. | F27: بیشتر از 3 | H27: د- استفاده از سیستم قاب خمشی ویژه و یا سیستم دوگانه الزامی است. | J27: با استفاده از تحلیل دینامیکی و حداکثر 1/25Te :
A28: بتن با پوکه صنعتـی و سیمــــــــان | C28: گروه 3 ( با اهمیت متوسط ) | D28: غیر‌خطی / دینامیکی تاریخچه زمانی | E28: با نقشه‌های معماری مطابقت ندارد. | H28: د- استفاده از سیستم‌های دوگانه یا با عنوان «ویژه» الزامی نیست.
A29: سایر | B29: استفاده از این سیستم سازه‌ای مجاز نیست | C29: گروه 4 ( با اهمیت کم )
F30: ___ | G30: 1 | J30: الف - سیستم دیوارهای باربر
A31: سیستم مقاوم در برابر نیروهای جانبی | B31: H | C31: Cd | E31: Ru | F31: پارکینگ | G31: 2 | H31: سیستم سازه | J31: ب- سیستم قاب ساختمانی
A32: سیستم دیوارهای باربر / دیوارهای برشی بتن آرمه ویژه | B32: 50 | C32: 5 | D32: omega 0 | E32: 5 | F32: مسکونی | G32: 3 | H32: الف - سیستم دیوارهای باربر | J32: پ- سیستم قاب خمشی
A33: سیستم دیوارهای باربر / دیوارهای برشی بتن آرمه متوسط | B33: 50 | C33: 4 | D33: 2.5 | E33: 4 | F33: تجاری | G33: 4 | J33: ت- سیستم دوگانه یا ترکیبی
A34: سیستم دیوارهای باربر / دیوارهای برشی بتن آرمه معمولی | B34: =IF(OR(C12=C26,C12=C27),B29,IF(AND(C12=C28,OR(C11=B6,C11=B7)),B29,15)) -> استفاده از این سیستم سازه‌ای مجاز نیست | C34: 3.5 | D34: 2.5 | E34: 3.5 | F34: بام | G34: 5 | J34: ث- سیستم کنسولی
A35: سیستم دیوارهای باربر / دیوارهای برشی با مصالح بنایی مسلح | B35: 15 | C35: 3 | D35: 2.5 | E35: 3 | F35: بام سبز | G35: 6
A36: سیستم دیوارهای باربر / دیوارهای متشکل از قاب های سبک فولادی سردنورد و مهارهای تسمه ای فولادی | B36: 15 | C36: 3.5 | D36: 2.5 | E36: 4 | F36: اداری | G36: 7
A37: سیستم دیوارهای باربر / دیوارهای متشکل از قاب های سبک فولادی سردنورد و صفحات پوشش فولادی | B37: 15 | C37: 4 | D37: 2 | E37: 5.5 | F37: صنعتی | G37: 1 | J37: محاسبه بصورت خودکار :
A38: سیستم دیوارهای باربر / دیوارهای بتن پاششی سه بعدی | B38: 10 | C38: 3 | D38: 3 | E38: 3 | F38: هتل | G38: 2 | J38: ورود مقدار توسط کاربر :
A39: سیستم قاب ساختمانی / دیوارهای برشی بتن آرمه ویژه | B39: 50 | C39: 5 | D39: 2 | E39: 6 | F39: آموزشی | G39: 3 | H39: ب- سیستم قاب ساختمانی
A40: سیستم قاب ساختمانی / دیوارهای برشی بتن آرمه متوسط | B40: 35 | C40: 4 | D40: 2.5 | E40: 5 | F40: فرهنگی-مذهبی | G40: 4 | J40: * ( تعیین مقادیر بصورت خودکار ) * مسئولیت صحت مقادیر بطور کامل بر عهده مهندس محاسب می‌باشد
A41: سیستم قاب ساختمانی / دیوارهای برشی بتن آرمه معمولی | B41: =IF(OR(C12=C26,C12=C27),B29,IF(AND(C12=C28,OR(C11=B6,C11=B7)),B29,15)) -> استفاده از این سیستم سازه‌ای مجاز نیست | C41: 3 | D41: 2.5 | E41: 4 | F41: بهداشتی-درمانی | G41: 5 | J41: ( تعیین مقادیر توسط کاربـــر )
A42: سیستم قاب ساختمانی / دیوارهای برشی با مصالح بنایی مسلح | B42: 15 | C42: 2.5 | D42: 2.5 | E42: 3 | F42: ورزشی | G42: 6
A43: سیستم قاب ساختمانی / مهاربندی واگرای ویژه فولادی (در تیرهای پیوند رفتار برشی حاکم است) | B43: 50 | C43: 4 | D43: 2.5 | E43: 7 | F43: تاسیسات | G43: 7
A44: سیستم قاب ساختمانی / مهاربندی واگرای ویژه فولادی (در تیرهای پیوند رفتار خمشی حاکم است) | B44: 50 | C44: 4 | D44: 2 | E44: 6 | F44: انبار | G44: 7
A45: سیستم قاب ساختمانی / مهاربندی کمانش تاب | B45: 50 | C45: 5 | D45: 2 | E45: 7 | F45: سایر | G45: 8
A46: سیستم قاب ساختمانی / مهاربندی همگرای معمولی فولادی | B46: 15 | C46: 3.5 | D46: 2.5 | E46: 3.5 | G46: 1
A47: سیستم قاب ساختمانی / مهاربندی همگرای ویژه فولادی | B47: 50 | C47: 5 | D47: 2 | E47: 5.5 | G47: 2
A48: سیستم قاب خمشی / قاب خمشی بتن آرمه ویژه | B48: 200 | C48: 5.5 | D48: 2 | E48: 7.5 | G48: 3 | H48: پ- سیستم قاب خمشی
A49: سیستم قاب خمشی / قاب خمشی بتن آرمه متوسط | B49: 35 | C49: 4.5 | D49: 3 | E49: 5 | G49: 4
A50: سیستم قاب خمشی / قاب خمشی بتن آرمه معمولی | B50: - | C50: 2.5 | D50: 3 | E50: 3 | F50: منفرد | G50: 5
A51: سیستم قاب خمشی / قاب خمشی فولادی ویژه | B51: 200 | C51: 5.5 | D51: 3 | E51: 7.5 | F51: نواری | G51: 6
A52: سیستم قاب خمشی / قاب خمشی فولادی متوسط | B52: 50 | C52: 4 | D52: 3 | E52: 5 | F52: شبکه‌ای | G52: 1
A53: سیستم قاب خمشی / قاب خمشی فولادی معمولی | B53: - | C53: 3 | D53: 3 | E53: 3.5 | F53: گسترده | G53: 2
A54: سیستم دوگانه یا ترکیبی / قاب خمشی ویژه (فولادی یا بتنی) + دیوارهای برشی بتن آرمه ویژه | B54: 200 | C54: 5.5 | D54: 3 | E54: 7.5 | F54: عمیق | G54: 3 | H54: ت- سیستم دوگانه یا ترکیبی
A55: سیستم دوگانه یا ترکیبی / قاب خمشی بتن آرمه متوسط + دیوار برشی بتن آرمه ویژه | B55: 70 | C55: 5 | D55: 2.5 | E55: 6.5 | F55: نیمه عمیق | G55: 4
A56: سیستم دوگانه یا ترکیبی / قاب خمشی بتن آرمه متوسط + دیوار برشی بتن آرمه متوسط | B56: 50 | C56: 4.5 | D56: 2.5 | E56: 6 | F56: انجام شده است. | G56: 5
A57: سیستم دوگانه یا ترکیبی / قاب خمشی فولادی متوسط + دیوار برشی بتن آرمه متوسط | B57: 50 | C57: 4.5 | D57: 2.5 | E57: 6 | F57: الزامی نیست. | G57: 6
A58: سیستم دوگانه یا ترکیبی / قاب خمشی فولادی ویژه + مهاربندی واگرای ویژه فولادی | B58: 200 | C58: 4 | D58: 2.5 | E58: 7.5 | G58: 7
A59: سیستم دوگانه یا ترکیبی / قاب خمشی فولادی متوسط + مهاربندی واگرای ویژه فولادی | B59: 70 | C59: 5 | D59: 2.5 | E59: 6 | F59: تعبیه شده است. | G59: 8
A60: سیستم دوگانه یا ترکیبی / قاب خمشی فولادی ویژه + مهاربندی همگرای ویژه فولادی | B60: 200 | C60: 5.5 | D60: 2.5 | E60: 7 | F60: مورد نیاز نیست. | G60: 1
A61: سیستم دوگانه یا ترکیبی / قاب خمشی فولادی متوسط + مهاربندی همگرای ویژه فولادی | B61: 70 | C61: 5 | D61: 2.5 | E61: 6
A62: سیستم کنسولی / سازه های فولادی یا بتن آرمه ویژه | B62: 10 | C62: 2 | D62: 2.5 | E62: 2 | F62: دیوار نگهبان کاملاً متصل به سازه، و بدون قابلیت جابجایی | H62: ث- سیستم کنسولی
D63: 1.5 | F63: دیوار نگهبان کاملاً مجزا از سازه، و با قابلیت جابجایی جهت فعال شدن فشار خاک پشت دیوار
F64: بخشی از دیوار در زیر تراز پایه به‌صورت متصل به سازه و بخشی از آن مجزا و با قابلیت جابجایی
A65: طیف طرح استاندارد | B65: 0.85 ( Vstatic / Vdynamic )
A66: طیف طرح ویژه ساختگاه | B66: 0.90 ( Vstatic / Vdynamic ) | C66: مقاومت مشخصـــه بتــــن سقف : | D66: در نظر گرفته شده است. | E66: دانه‌ای | F66: صلب
A67: تاریخچه زمانی شتاب، شتاب‌نگاشت | B67: 1.00 ( Vstatic / Vdynamic ) | C67: مقاومت مشخصـه بتـــن اسکلت : | D67: لازم به اعمال نیست. | E67: صرفاً چسبنده | F67: انعطاف‌پذیر
C68: =IF(B12=2,C67,C66) -> مقاومت مشخصـــه بتــــن سقف :
A69: جذر مجموع مربعات (SRSS) | B69: V dynamic > V static | F69: ظرفیت باربری مجاز > تنش متوسط
A70: ترکیب مربعی کامل (CQC) | B70: =IF(OR('Main Form'!B58=Options!E83,'Main Form'!B59=Options!E91,'Main Form'!B46=Options!B77),Options!B67,IF(AND('Main Form'!E62=Options!F14,'Main Form'!B62=Options!F16),Options!B65,Options!B66)) -> 0.85 ( Vstatic / Vdynamic ) | F70: ظرفیت باربری مجاز > تنش حداکثر
F71: =IF(AND('Main Form'!F121=Options!F66,'Main Form'!F122=Options!E67),Options!F70,Options!F69) -> ظرفیت باربری مجاز > تنش متوسط
A72: وجود ندارد یا کمتر از 20 درصد طول پلان در هر دو جهت است. | B72: الف- ساختمان نامنظمی هندســـــــــــــــــــــی ندارد. | E72: الف- ساختمان نامنظمی هندســـــــــــــــــــــــــــــی ندارد.
A73: بیشتر از 20 درصد طول پلان در هر دو جهت است. | B73: الف- ساختمان نامنظمی هندســــــــــــــــــــــی دارد. | D73: کمتر از 130 درصد آن در طبقات مجاور می‌باشد. | E73: الف- ساختمان نامنظمی هندســــــــــــــــــــــــــــــی دارد.
D74: بیشتر از 130 درصد آن در طبقات مجاور می‌باشد.
A75: کمتر از 20 درصد متوسط تغییرمکان نسبی در دو انتهای ساختمان در آن طبقه است. | B75: ب- ساختمان نامنظمی زیاد یا شدید پیچشـــــــی ندارد. | E75: ب- ساختمان نامنظمی جرمــــــــــــــــــــــــــــــــی ندارد.
A76: بیشتر از 20 درصد متوسط تغییرمکان نسبی در دو انتهای ساختمان در آن طبقه است. | B76: ب- ساختمان نامنظمی زیـــــــــــاد پیچشـــــــی دارد. | D76: کمتر از 50 درصد است. | E76: ب- ساختمان نامنظمی جرمـــــــــــــــــــــــــــــــــی دارد.
A77: بیشتر از 40 درصد متوسط تغییرمکان نسبی در دو انتهای ساختمان در آن طبقه است. | B77: ب- ساختمان نامنظمی شدیـــــــــد پیچشــــــــی دارد. | D77: بیشتر از 50 درصد است.
E78: پ- ساختمان نامنظمی در قطع سیستم باربر جانبـــــــی ندارد.
A79: به میزان مجموع سطوح بازشوی کمتر از 50 درصد سطح طبقه است. | B79: پ- ساختمان نامنظمی در دیافراگـــــــــــــــــم ندارد. | D79: وجود ندارد یا آثار ناشی از واژگونی روی اعضا تکیه‌گاهی تغییراتی ایجاد نمی‌کند. | E79: پ- ساختمان نامنظمی در قطع سیستم باربر جانبــــــــی دارد.
A80: به میزان مجموع سطوح بازشوی بیشتر از 50 درصد سطح طبقه است. | B80: پ- ساختمان نامنظمی در دیافراگــــــــــــــــــم دارد. | D80: وجود دارد و آثار ناشی از واژگونی روی اعضا تکیه‌گاهی تغییراتی ایجاد می‌کند.
E81: ت- ساختمان نامنظمی مقاومت جانبـــــــــــــــــــــــی ندارد.
A82: وجود ندارد یا کمتر از 50 درصد سختی طبقات مجاور است. | D82: از 80 درصد مقاومت جانبی طبقه روی خود بیشتر است. | E82: ت- ساختمان نامنظمی مقاومت جانبی (طبقه ضعیـــــــف) دارد.
A83: بیشتر از 50 درصد سختی طبقات مجاور است. | D83: از 80 درصد مقاومت جانبی طبقه روی خود کمتر است. | E83: ت- ساختمان نامنظمی مقاومت جانبی (طبقه خیلی ضعیف) دارد.
D84: از 65 درصد مقاومت جانبی طبقه روی خود کمتر است.
A85: در هیچ‌یک از اجزای باربر جانبی وجود ندارد. | B85: ت- ساختمان نامنظمی خارج از صفحـــــــــــــــه ندارد.
A86: حداقل در یکی از اجزای باربر جانبی در طبقات وجود دارد. | B86: ت- ساختمان نامنظمی خارج از صفحــــــــــــــــه دارد. | D86: از 70 درصد سختی جانبی طبقه روی خود بیشتر است.
D87: از 70 درصد سختی جانبی طبقه روی خود کمتر است.
A88: تماماً به موازات محورهای متعامد اصلی ساختمان می‌باشند. | B88: ث- ساختمان نامنظمی سیستم‌های غیرمـــــوازی ندارد. | D88: از 60 درصد سختی جانبی طبقه روی خود کمتر است.
A89: بعضاً به موازات محورهای متعامد اصلی ساختمان نمی‌باشند. | B89: ث- ساختمان نامنظمی سیستم‌های غیرمــــــوازی دارد. | E89: ث- ساختمان نامنظمی سختـی جانبـــــــــــــــــــــــی ندارد.
D90: از 80 درصد متوسط سختی‌های جانبی سه طبقه روی خود بیشتر است. | E90: ث- ساختمان نامنظمی سختـی جانبی (طبقه نــــــــــرم) دارد.
D91: از 80 درصد متوسط سختی‌های جانبی سه طبقه روی خود کمتر است. | E91: ث- ساختمان نامنظمی سختـی جانبی (طبقه خیلی نـــرم) دارد.
D92: از 70 درصد متوسط سختی‌های جانبی سه طبقه روی خود کمتر است.
